bitfinex/quotes_SOLUSD_20240625
["timestamp","ask_amount","ask_price","bid_price","bid_amount"]
[1719285720673,7.51022157,134.73,134.71,5.9386]
[1719285721002,7.51022157,134.73,134.7,5.939]
[1719285721165,7.51022157,134.73,134.72,5.9382]
[1719285721365,7.51022157,134.73,134.72,20.7838]
[1719285722994,0.08374096,134.84,134.79,5.9351]
[1719285723370,0.08374096,134.84,134.8,5.9346]
[1719285723668,100.0,134.82,134.75,14.8418]
[1719285723872,100.0,134.83,134.75,20.7783]
[1719285723873,100.0,134.8,134.75,20.7783]
[1719285724491,100.0,134.77,134.71,47.3565]
[1719285724673,100.0,134.77,134.69,36.0934]
[1719285724674,100.0,134.8,134.69,36.0934]
[1719285724869,100.0,134.8,134.73,14.8437]
[1719285725108,100.0,134.8,134.73,20.7811]
[1719285725266,100.0,134.8,134.73,14.8437]
[1719285725470,0.08374096,134.84,134.79,5.9349]
[1719285725773,0.08374096,134.84,134.79,14.8372]
[1719285726174,0.08374096,134.84,134.81,14.8347]
[1719285726379,0.08374096,134.84,134.83,5.9333]
[1719285726585,0.08374096,134.84,134.82,5.9337]
[1719285727303,0.08374096,134.84,134.81,20.7688]
[1719285727484,0.08374096,134.84,134.8,5.9346]
[1719285727683,0.08374096,134.84,134.83,5.9333]
[1719285729197,0.08374096,134.84,134.82,14.8337]
[1719285729787,0.08374096,134.84,134.79,29.6752]
[1719285729788,0.08374096,134.84,134.79,14.8375]
[1719285730182,0.08374096,134.84,134.8,5.9347]
[1719285730506,100.0,134.82,134.76,14.841]
[1719285730698,100.08374096,134.84,134.77,5.9359]
[1719285730903,100.0,134.82,134.77,5.9356]
[1719285731105,100.0,134.82,134.71,9.695]
[1719285731412,6.62694096,134.84,134.77,14.8394]
[1719285731586,206.62694096,134.84,134.77,14.8394]
[1719285731786,206.62694096,134.84,134.78,5.9354]
[1719285732011,100.0,134.81,134.77,14.8394]
[1719285732191,100.0,134.81,134.77,13.2618]
[1719285732393,100.0,134.79,134.75,5.9368]
[1719285732617,100.0,134.79,134.74,14.8432]
[1719285733121,100.0,134.79,134.75,5.9368]
[1719285733288,100.0,134.79,134.74,14.8432]
[1719285733489,100.0,134.77,134.74,14.8432]
[1719285734297,100.0,134.75,134.71,14.8461]
[1719285734793,100.0,134.71,134.63,9.695]
[1719285734994,115.0162,134.75,134.67,14.85]
[1719285735315,100.0,134.75,134.65,32.42]
[1719285735516,100.0,134.75,134.63,39.4055]
[1719285735517,6.3622,134.76,134.7,14.8469]
[1719285735701,6.3622,134.76,134.7,20.7859]
[1719285735702,100.0,134.74,134.7,20.7859]
[1719285735901,100.0,134.74,134.7,14.8469]
[1719285736295,100.0,134.74,134.63,39.4055]
[1719285736296,100.0,134.74,134.66,14.8511]
[1719285736592,100.0,134.74,134.63,39.4055]
[1719285736804,100.0,134.74,134.7,5.9391]
[1719285737005,206.3622,134.76,134.7,5.9391]
[1719285737205,106.3622,134.76,134.7,5.9391]
[1719285737497,100.0,134.74,134.64,20.0]
[1719285737701,100.0,134.72,134.68,5.9399]
[1719285738013,100.0,134.72,134.63,9.695]
[1719285738995,100.0,134.72,134.66,5.9408]
[1719285739316,100.0,134.72,134.69,14.8483]
[1719285739610,100.0,134.74,134.66,14.8516]
[1719285739812,100.0,134.71,134.66,14.8516]
[1719285740000,100.0,134.73,134.67,5.9402]
[1719285740203,100.0,134.73,134.68,5.9399]
[1719285740913,100.0,134.73,134.67,5.9403]
[1719285741098,100.0,134.69,134.66,14.8516]
[1719285741417,100.0,134.69,134.63,20.7972]
[1719285741616,100.0,134.69,134.64,5.9417]
[1719285742009,100.0,134.69,134.63,20.7972]
[1719285742200,100.0,134.69,134.63,14.8551]
[1719285742397,100.0,134.69,134.64,5.9414]
[1719285742596,100.0,134.67,134.63,20.7972]
[1719285742793,100.0,134.67,134.55,9.695]
[1719285742794,100.0,134.65,134.6,14.8587]
[1719285743422,100.0,134.65,134.6,20.802]
[1719285743605,100.0,134.67,134.62,14.856]
[1719285743799,15.1032,134.72,134.58,29.7213]
[1719285743800,100.0,134.71,134.58,29.7213]
[1719285744299,21.5782,134.72,134.68,14.8492]
[1719285744300,121.5782,134.72,134.68,14.8492]
[1719285744507,21.5782,134.72,134.68,20.7888]
[1719285744705,100.0,134.74,134.7,5.939]
[1719285744902,112.4115,134.76,134.68,14.8492]
[1719285745239,100.0,134.69,134.63,5.9418]
[1719285745397,205.9395,134.69,134.62,14.8561]
[1719285745712,205.9396,134.69,134.61,5.9427]
[1719285745904,100.0,134.66,134.62,5.9424]
[1719285746323,100.0,134.66,134.61,20.7999]
[1719285746812,100.0,134.66,134.62,5.9425]
[1719285747431,122.3059,134.74,134.6,29.7174]
[1719285747602,5.9391,134.7,134.63,5.9421]
[1719285747794,200.0,134.71,134.63,14.855]
[1719285747995,100.0,134.68,134.63,20.7969]
[1719285748215,100.0,134.66,134.62,5.9424]
[1719285748524,105.9387,134.71,134.62,14.8561]
[1719285748695,200.0,134.71,134.64,14.8537]
[1719285748896,100.0,134.73,134.66,5.9405]
[1719285749107,122.3059,134.74,134.66,14.8516]
[1719285749428,100.0,134.72,134.68,14.8495]
[1719285749735,22.3059,134.74,134.68,14.8495]
[1719285750307,100.0,134.77,134.7,14.8473]
[1719285750530,100.0,134.77,134.69,14.848]
[1719285750702,122.658,134.78,134.71,5.9383]
[1719285750899,122.658,134.78,134.69,14.848]
[1719285750900,228.5936,134.78,134.69,14.848]
[1719285751109,222.658,134.78,134.7,5.939]
[1719285751310,222.658,134.78,134.69,20.7875]
[1719285751616,100.0,134.75,134.68,1.47166614]
[1719285751808,105.937,134.75,134.66,14.8517]
[1719285752003,100.0,134.77,134.7,5.9387]
[1719285752205,100.0,134.77,134.7,14.8467]
[1719285752519,105.9361,134.77,134.7,20.7857]
[1719285752701,5.9365,134.76,134.7,14.8467]
[1719285752902,105.9365,134.76,134.7,14.8467]
[1719285753206,100.0,134.75,134.7,14.8467]
[1719285753422,22.658,134.78,134.7,14.8467]
[1719285753624,22.658,134.78,134.74,5.937]
[1719285753835,100.0,134.79,134.72,14.8448]
[1719285754129,5.9343,134.81,134.74,5.9372]
[1719285754423,100.0,134.8,134.73,5.9377]
[1719285754606,100.0,134.77,134.7,5.9387]
[1719285755212,100.0,134.77,134.66,62.1324]
[1719285755213,5.9376,134.74,134.66,47.2819]
[1719285755537,200.0,134.76,134.68,5.9399]
[1719285755538,105.9365,134.76,134.68,5.9399]
[1719285755858,100.0,134.76,134.69,5.9394]
[1719285756126,106.1061,134.77,134.69,5.9394]
[1719285756340,0.17,134.76,134.69,5.9394]
[1719285756633,0.17,134.76,134.61,32.43]
[1719285756820,106.1065,134.76,134.68,5.9396]
[1719285757030,100.0,134.75,134.69,5.9394]
[1719285757619,100.0,134.75,134.68,20.7893]
[1719285758130,100.0,134.73,134.68,20.7893]
[1719285758330,100.0,134.73,134.63,36.4061]
[1719285758331,100.0,134.73,134.65,14.8526]
[1719285758517,100.0,134.71,134.66,5.9408]
[1719285758926,100.17,134.76,134.67,14.8505]
[1719285759125,100.17,134.76,134.68,5.9399]
[1719285759126,100.0,134.75,134.68,5.9399]
[1719285759327,100.0,134.73,134.67,20.7908]
[1719285759516,105.937,134.75,134.67,20.7908]
[1719285759723,100.0,134.75,134.67,14.8505]
[1719285760022,100.0,134.77,134.7,5.939]
[1719285760223,100.0,134.79,134.71,14.8462]
[1719285760437,100.0,134.78,134.71,20.7845]
[1719285760736,100.0,134.76,134.71,20.7845]
[1719285761039,100.0,134.74,134.68,20.7892]
[1719285761529,100.0,134.74,134.68,14.8493]
[1719285761728,105.937,134.75,134.65,20.7937]
[1719285761729,100.0,134.7,134.65,20.7937]
[1719285761933,100.0,134.7,134.65,14.8528]
[1719285762116,100.0,134.73,134.67,14.8505]
[1719285762325,100.0,134.71,134.65,5.9409]
[1719285762619,100.0,134.69,134.65,5.9409]
[1719285762817,100.0,134.72,134.64,24.5487]
[1719285763029,100.0,134.72,134.66,5.9405]
[1719285763527,100.0,134.72,134.65,5.9412]
[1719285763840,100.0,134.72,134.66,5.9407]
[1719285764023,100.0,134.72,134.65,5.9412]
[1719285764219,100.0,134.69,134.64,20.7953]
[1719285764420,100.0,134.69,134.64,14.8537]
[1719285764620,100.0,134.67,134.63,5.9422]
[1719285764826,100.0,134.67,134.62,5.9425]
[1719285765035,100.0,134.67,134.61,14.857]
[1719285765036,100.0,134.65,134.6,6.0605]
[1719285765219,100.0,134.65,134.61,5.9429]
[1719285765726,100.0,134.65,134.6,20.9188]
[1719285765727,200.0,134.69,134.6,6.0605]
[1719285766036,200.0,134.71,134.65,20.7939]
[1719285766229,0.17,134.7,134.65,14.8527]
[1719285766538,0.17,134.7,134.6,35.778]
[1719285766539,0.17,134.7,134.63,5.9421]
[1719285766736,0.17,134.7,134.64,5.9416]
[1719285766927,0.17,134.7,134.63,5.9421]
[1719285767435,0.17,134.7,134.63,5.942]
[1719285767641,106.1095,134.7,134.63,5.9421]
[1719285768117,100.17,134.7,134.63,5.9421]
[1719285768320,100.0,134.68,134.63,5.9421]
[1719285768626,100.0,134.68,134.62,14.8559]
[1719285769015,100.0,134.68,134.62,20.7985]
[1719285770436,105.9401,134.68,134.61,5.9429]
[1719285770636,0.17,134.67,134.61,5.9429]
[1719285770868,0.17,134.67,134.62,5.9425]
[1719285771032,100.0,134.66,134.61,5.943]
[1719285771222,0.17,134.67,134.61,14.8572]
[1719285771417,206.1504,134.68,134.61,14.8572]
[1719285771618,5.9405,134.67,134.61,14.8572]
[1719285771818,212.0905,134.68,134.61,20.8001]
[1719285772123,0.17,134.69,134.63,14.855]
[1719285772324,100.0,134.7,134.64,5.9416]
[1719285772537,105.9391,134.7,134.63,20.797]
[1719285772724,100.0,134.7,134.63,20.797]
[1719285773128,100.0,134.68,134.63,20.797]
[1719285774145,200.0,134.7,134.64,5.9415]
[1719285774447,0.17,134.69,134.64,5.9415]
[1719285775130,0.17,134.69,134.63,14.855]
[1719285776257,0.17,134.69,134.63,20.7971]
[1719285776425,200.17,134.69,134.62,5.9426]
[1719285776621,200.17,134.69,134.63,5.9421]
[1719285777226,200.17,134.69,134.64,5.9417]
[1719285777427,200.17,134.69,134.63,5.942]
[1719285778052,100.0,134.67,134.61,5.9427]
[1719285778251,200.0,134.67,134.61,5.9427]
[1719285778842,0.17,134.69,134.61,14.8573]
[1719285778843,100.17,134.69,134.61,14.8573]
[1719285779048,106.1097,134.69,134.62,5.9425]
[1719285779425,100.17,134.69,134.62,5.9425]
[1719285779925,100.17,134.69,134.63,5.942]
[1719285780129,106.1096,134.69,134.62,5.9426]
[1719285780441,100.17,134.69,134.62,5.9426]
[1719285780757,106.1096,134.69,134.62,5.9426]
[1719285781041,100.17,134.69,134.63,5.9421]
[1719285781250,100.0,134.68,134.62,5.9425]
[1719285781830,100.17,134.69,134.63,5.9421]
[1719285782146,106.5234,134.72,134.59,29.7182]
[1719285782349,106.5234,134.72,134.66,5.9407]
[1719285782649,106.5234,134.72,134.65,20.794]
[1719285783028,100.0,134.69,134.64,5.9417]
[1719285783522,100.0,134.69,134.62,14.8558]
[1719285783720,100.0,134.69,134.62,20.7981]
[1719285783944,105.9394,134.7,134.62,20.7983]
[1719285783945,100.0,134.67,134.62,20.7983]
[1719285784129,100.17,134.7,134.62,14.8558]
[1719285784433,100.0,134.7,134.64,14.8541]
[1719285784834,100.17,134.69,134.63,5.9419]
[1719285785347,100.0,134.68,134.63,5.9419]
[1719285786140,100.0,134.69,134.64,5.9417]
[1719285787253,100.0,134.69,134.63,20.7972]
[1719285787452,100.0,134.68,134.63,20.7972]
[1719285787660,100.0,134.67,134.6,14.8582]
[1719285788646,100.0,134.66,134.6,20.8013]
[1719285788955,100.0,134.67,134.61,5.9429]
[1719285789260,100.0,134.67,134.61,5.9428]
[1719285789761,100.0,134.66,134.6,20.8016]
[1719285789945,100.0,134.65,134.6,20.8016]
[1719285790139,105.9405,134.67,134.6,20.8016]
[1719285790342,100.0,134.67,134.61,5.943]
[1719285790553,100.0,134.67,134.62,5.9425]
[1719285791360,115.394,134.71,134.6,29.7174]
[1719285791560,15.394,134.71,134.65,5.941]
[1719285792255,15.394,134.71,134.66,5.9407]
[1719285792463,15.394,134.71,134.6,29.7174]
[1719285792464,200.0,134.67,134.55,3.76161405]
[1719285792641,100.0,134.67,134.57,27.84]
[1719285792843,100.0,134.67,134.6,20.8015]
[1719285793043,200.0,134.67,134.61,5.943]
[1719285793244,200.0,134.67,134.6,20.8017]
[1719285793653,200.0,134.67,134.61,5.9429]
[1719285794161,100.0,134.69,134.62,14.8562]
[1719285794457,100.0,134.69,134.62,20.7987]
[1719285794660,200.0,134.69,134.62,20.7987]
[1719285794846,205.9395,134.69,134.62,20.7987]
[1719285795043,100.0,134.66,134.6,27.84]
[1719285795368,100.0,134.66,134.6,5.9432]
[1719285795666,100.0,134.66,134.59,14.8592]
[1719285795843,100.0,134.66,134.59,20.8028]
[1719285796452,100.0,134.66,134.61,5.943]
[1719285796851,100.0,134.68,134.58,27.84]
[1719285797055,100.0,134.69,134.61,14.8573]
[1719285797268,100.17,134.7,134.63,5.9418]
[1719285797451,100.0,134.7,134.63,5.9418]
[1719285797653,105.9391,134.7,134.63,5.9418]
[1719285797953,100.0,134.66,134.6,5.9433]
[1719285798153,100.0,134.64,134.58,14.8606]
[1719285798350,100.0,134.64,134.59,5.9439]
[1719285798659,100.0,134.64,134.58,14.8606]
[1719285799060,100.0,134.64,134.58,20.8046]
[1719285799660,106.4954,134.65,134.59,5.9439]
[1719285800465,6.4954,134.65,134.59,5.9439]
[1719285800665,106.4954,134.65,134.59,5.9439]
[1719285802668,100.0,134.6,134.53,9.695]
[1719285802875,100.0,134.57,134.51,5.9473]
[1719285803365,100.0,134.57,134.51,5.9472]
[1719285803560,100.0,134.57,134.5,5.9477]
[1719285803760,100.0,134.55,134.47,15.9476]
[1719285803947,100.0,134.55,134.48,5.9487]
[1719285804146,100.17,134.56,134.49,5.9483]
[1719285804371,100.17,134.55,134.5,5.9478]
[1719285804559,100.17,134.55,134.48,20.8199]
[1719285804759,100.17,134.55,134.49,5.9482]
[1719285805272,100.17,134.55,134.49,5.9483]
[1719285805775,100.17,134.55,134.48,20.8202]
[1719285805972,100.17,134.55,134.49,5.9481]
[1719285806951,100.0,134.53,134.48,14.8715]
[1719285807263,100.0,134.53,134.44,42.7164]
[1719285807574,100.0,134.53,134.47,5.9492]
[1719285808768,100.0,134.53,134.48,5.9487]
[1719285808975,200.0,134.56,134.48,14.8714]
[1719285809278,200.0,134.56,134.49,5.9482]
[1719285809480,100.0,134.56,134.51,5.9471]
[1719285809776,100.0,134.56,134.5,14.8693]
[1719285810155,105.9453,134.56,134.48,5.9487]
[1719285810355,100.0,134.54,134.47,14.8727]
[1719285810682,100.0,134.54,134.49,5.9483]
[1719285810984,100.0,134.54,134.48,5.9487]
[1719285811176,100.0,134.54,134.47,42.7127]
[1719285811177,100.0,134.54,134.47,14.8727]
[1719285811471,100.0,134.52,134.47,14.8727]
[1719285811679,100.0,134.52,134.47,20.8217]
[1719285812060,100.0,134.54,134.48,5.9487]
[1719285812259,100.0,134.54,134.47,14.8727]
[1719285812456,100.0,134.54,134.49,5.9483]
[1719285812665,100.0,134.54,134.47,14.8727]
[1719285812862,200.0,134.54,134.47,20.8218]
[1719285813084,100.0,134.52,134.47,20.8218]
[1719285813663,100.0,134.52,134.45,27.84]
[1719285813859,100.0,134.52,134.46,5.9496]
[1719285815661,100.0,134.49,134.45,27.84]
[1719285816969,100.0,134.49,134.44,20.8268]
[1719285817294,100.0,134.49,134.44,14.8764]
[1719285817493,122.5844,134.51,134.44,20.8266]
[1719285818059,128.5319,134.51,134.44,20.8266]
[1719285818368,100.0,134.48,134.42,27.84]
[1719285818567,100.0,134.48,134.42,33.7911]
[1719285818787,200.0,134.48,134.42,33.7911]
[1719285818998,200.0,134.48,134.41,14.8794]
[1719285818999,100.0,134.46,134.41,20.8312]
[1719285819496,100.0,134.46,134.39,27.84]
[1719285819672,15.8389,134.43,134.38,14.8824]
[1719285820295,15.8389,134.43,134.39,5.9527]
[1719285820458,15.8389,134.43,134.4,5.9523]
[1719285820659,15.8389,134.43,134.39,5.9527]
[1719285820889,15.8389,134.43,134.38,14.8824]
[1719285821090,15.8389,134.43,134.38,20.8353]
[1719285821293,15.8389,134.43,134.39,5.9527]
[1719285821489,100.0,134.42,134.38,14.8824]
[1719285822491,100.0,134.42,134.38,20.8356]
[1719285823485,15.8389,134.43,134.39,5.9525]
[1719285823677,15.8389,134.43,134.38,14.8824]
[1719285823678,115.8389,134.43,134.38,14.8824]
[1719285823865,115.8389,134.43,134.39,5.9527]
[1719285824073,115.8389,134.43,134.39,5.9526]
[1719285824267,115.8389,134.43,134.38,20.8355]
[1719285824677,100.0,134.42,134.38,20.8355]
[1719285824986,100.0,134.4,134.35,20.8402]
[1719285825188,100.0,134.4,134.35,14.886]
[1719285825763,100.0,134.4,134.34,5.9549]
[1719285825961,0.17,134.39,134.34,5.9549]
[1719285826191,100.0,134.4,134.35,5.9542]
[1719285826391,100.0,134.4,134.34,14.8867]
[1719285826982,100.0,134.4,134.35,5.9545]
[1719285827181,100.0,134.4,134.34,14.8867]
[1719285827379,100.17,134.39,134.34,14.8867]
[1719285827685,0.17,134.39,134.34,20.8413]
[1719285827893,100.0,134.4,134.34,20.8413]
[1719285828078,0.17,134.39,134.35,5.9544]
[1719285828281,15.8389,134.43,134.32,27.84]
[1719285828282,115.8389,134.43,134.32,27.84]
[1719285828601,6.3573,134.44,134.4,5.9523]
[1719285828890,6.3573,134.44,134.39,20.8342]
[1719285829097,106.3573,134.44,134.38,5.9532]
[1719285829302,100.0,134.43,134.36,20.8389]
[1719285829602,100.0,134.42,134.36,20.8389]
[1719285829796,100.0,134.42,134.37,5.9536]
[1719285829974,100.0,134.42,134.38,5.9531]
[1719285830294,100.0,134.42,134.38,5.9528]
[1719285830509,106.3573,134.44,134.36,14.8849]
[1719285830684,106.3573,134.44,134.38,14.8822]
[1719285831086,106.3573,134.44,134.39,5.9526]
[1719285831382,100.0,134.42,134.38,14.8822]
[1719285831789,106.3573,134.44,134.39,5.9524]
[1719285832020,100.0,134.46,134.42,5.9514]
[1719285833075,22.3928,134.47,134.42,5.9514]
[1719285833272,15.9568,134.47,134.42,14.8781]
[1719285834208,6.6261,134.5,134.45,5.9501]
[1719285834376,106.6261,134.5,134.45,5.9501]
[1719285834906,106.6261,134.5,134.44,20.8261]
[1719285835084,106.6261,134.5,134.45,5.9501]
[1719285835276,106.6261,134.5,134.44,20.8261]
[1719285835470,100.0,134.48,134.44,14.8756]
[1719285835904,100.0,134.48,134.4,27.84]
[1719285836092,100.0,134.48,134.44,5.9505]
[1719285836804,200.0,134.48,134.4,14.8804]
[1719285837007,0.17,134.47,134.4,14.8804]
[1719285837179,106.6261,134.5,134.42,14.8781]
[1719285837390,100.0,134.46,134.42,14.8781]
[1719285837690,100.0,134.48,134.42,14.8781]
[1719285837900,0.17,134.47,134.42,14.8781]
[1719285838117,0.17,134.47,134.4,27.84]
[1719285838476,106.6261,134.5,134.44,5.9505]
[1719285838703,0.17,134.49,134.44,5.9505]
[1719285838877,106.6261,134.5,134.4,57.6008]
[1719285839082,106.6261,134.5,134.44,5.9505]
[1719285839595,100.0,134.48,134.4,27.84]
[1719285839802,100.0,134.46,134.36,29.7705]
[1719285840003,100.0,134.47,134.37,27.84]
[1719285840174,100.0,134.47,134.42,5.9513]
[1719285840498,100.0,134.47,134.41,20.8309]
[1719285840499,0.17,134.46,134.41,20.8309]
[1719285840982,100.17,134.46,134.38,14.8826]
[1719285841302,100.0,134.43,134.36,5.9537]
[1719285841497,100.0,134.43,134.38,5.9529]
[1719285841689,100.0,134.43,134.37,14.8833]
[1719285842106,21.9209,134.44,134.42,5.9514]
[1719285842298,0.17,134.46,134.41,14.8791]
[1719285842492,206.1431,134.47,134.41,20.8309]
[1719285842697,106.1431,134.47,134.41,20.8309]
[1719285842898,6.1431,134.47,134.41,20.8309]
[1719285843507,100.0,134.47,134.42,5.9514]
[1719285843806,100.0,134.47,134.41,20.8309]
[1719285843807,100.0,134.45,134.41,20.8309]
[1719285843996,105.9504,134.45,134.38,20.8358]
[1719285844195,100.0,134.43,134.35,44.1534]
[1719285844402,200.0,134.45,134.35,59.0395]
[1719285844616,5.9506,134.44,134.37,5.9534]
[1719285844908,0.17,134.43,134.37,5.9534]
[1719285845120,0.17,134.43,134.38,5.9531]
[1719285845422,0.17,134.44,134.4,5.9523]
[1719285845620,205.9496,134.47,134.4,5.9523]
[1719285845948,6.1198,134.46,134.39,5.9527]
[1719285846421,6.1198,134.46,134.37,14.8839]
[1719285846582,100.0,134.43,134.37,14.8839]
[1719285846789,0.17,134.42,134.37,14.8839]
[1719285846988,205.9505,134.45,134.37,14.8839]
[1719285847211,100.0,134.41,134.37,14.8839]
[1719285847399,100.0,134.41,134.35,33.7942]
[1719285847593,106.6621,134.43,134.37,5.9535]
[1719285847794,6.6621,134.46,134.35,57.6108]
[1719285848004,100.0,134.45,134.41,5.9515]
[1719285848211,6.6621,134.46,134.41,5.9516]
[1719285848437,6.6621,134.46,134.41,14.8794]
[1719285848597,16.2659,134.48,134.41,14.8794]
[1719285848917,200.0,134.47,134.41,20.8312]
[1719285849289,100.0,134.44,134.38,33.7928]
[1719285849490,100.0,134.44,134.39,5.9527]
[1719285850307,100.0,134.44,134.38,5.9531]
[1719285850512,100.0,134.42,134.37,20.8366]
[1719285850923,100.0,134.44,134.38,5.953]
[1719285851142,0.17,134.43,134.38,5.953]
[1719285851735,100.0,134.44,134.39,5.9527]
[1719285851941,100.0,134.44,134.39,5.9528]
[1719285852126,100.0,134.44,134.38,5.9531]
[1719285852715,0.17,134.43,134.38,5.9531]
[1719285855136,0.17,134.43,134.37,20.8367]
[1719285855313,0.17,134.43,134.37,20.8364]
[1719285855513,100.0,134.42,134.34,21.1421]
[1719285855734,100.0,134.39,134.35,5.9544]
[1719285856112,100.0,134.41,134.35,5.9544]
[1719285856358,100.0,134.39,134.35,5.9544]
[1719285856517,100.0,134.39,134.34,21.1421]
[1719285856518,200.0,134.41,134.36,5.9541]
[1719285856717,200.0,134.41,134.35,5.9545]
[1719285857222,200.0,134.44,134.34,6.2552]
[1719285857442,200.0,134.44,134.39,5.9527]
[1719285857736,200.0,134.44,134.38,20.8358]
[1719285857917,100.0,134.42,134.38,14.8827]
[1719285858747,100.0,134.42,134.37,5.9535]
[1719285859127,100.0,134.4,134.35,14.8857]
[1719285859442,200.0,134.4,134.35,14.8857]
[1719285859608,0.17,134.39,134.34,5.9549]
[1719285859811,0.17,134.39,134.33,5.9553]
[1719285860443,100.0,134.38,134.32,24.5842]
[1719285860609,0.17,134.39,134.32,24.5842]
[1719285860610,0.17,134.39,134.34,14.8868]
[1719285860940,221.3663,134.42,134.36,5.9538]
[1719285861136,0.17,134.41,134.36,5.9538]
[1719285861311,0.17,134.41,134.36,14.8845]
[1719285861512,205.9506,134.44,134.36,14.8845]
[1719285861734,100.0,134.42,134.36,14.8845]
[1719285861922,100.0,134.42,134.36,20.8385]
[1719285862130,22.4064,134.46,134.4,5.9521]
[1719285862444,44.76,134.51,134.41,14.8793]
[1719285862445,216.5102,134.49,134.41,14.8793]
[1719285862753,216.5102,134.49,134.38,16.2207]
[1719285862754,16.5102,134.49,134.45,5.9497]
[1719285862919,16.5102,134.49,134.43,14.8772]
[1719285863240,16.5102,134.49,134.43,20.8281]
[1719285863532,16.5102,134.49,134.43,14.8772]
[1719285863746,100.0,134.48,134.43,20.8282]
[1719285863943,100.0,134.48,134.43,20.828]
[1719285864127,16.5102,134.49,134.43,20.828]
[1719285865639,16.5102,134.49,134.43,14.8772]
[1719285865859,100.0,134.46,134.4,14.8803]
[1719285866042,100.0,134.46,134.4,20.8323]
[1719285866242,100.0,134.46,134.42,5.9514]
[1719285866441,100.0,134.48,134.42,5.9514]
[1719285867353,16.5102,134.49,134.42,5.9514]
[1719285867539,100.0,134.48,134.42,5.9514]
[1719285867746,16.5102,134.49,134.42,14.8782]
[1719285867966,255.1,134.57,134.39,29.7622]
[1719285867967,122.7537,134.53,134.39,29.7622]
[1719285868137,222.7537,134.53,134.4,22.29311443]
[1719285868533,100.0,134.51,134.44,14.876]
[1719285868835,100.0,134.51,134.44,20.8264]
[1719285869639,205.9476,134.51,134.44,20.8264]
[1719285870345,100.0,134.49,134.44,14.876]
[1719285870831,100.0,134.47,134.42,5.9513]
[1719285871460,100.0,134.47,134.41,14.8795]
[1719285872270,200.0,134.47,134.38,16.2207]
[1719285872476,105.9505,134.45,134.38,22.1736]
[1719285872644,100.0,134.45,134.4,5.9523]
[1719285872963,100.0,134.45,134.4,5.952]
[1719285873169,100.0,134.47,134.4,14.8804]
[1719285873339,0.17,134.48,134.42,14.8782]
[1719285873542,200.0,134.51,134.38,16.2207]
[1719285873770,100.0,134.49,134.38,16.2207]
[1719285873955,100.0,134.48,134.4,14.8801]
[1719285874151,100.0,134.45,134.42,5.9514]
[1719285874354,100.0,134.45,134.41,5.9518]